Cogmind - Beta 13 @@@ ROGUE MODE // 2024.07.05 @ 18:01:12 Player: Berg Result: Destroyed by BQ-YG2(z) with Zionite Laser-S Performance ------------- Evolutions (1) 500 Regions Visited (5) 1000 Robots Destroyed (70) 350 Value Destroyed (1778) 1778 Prototype IDs (7) 140 Alien Tech Used (0) 0 Bonus (638) 638 TOTAL SCORE: 4406 Bonus ------- High Alert Combat Kills 38 Met Imprinter 300 Was Imprinted 300 Cogmind --------- Core Integrity 0/400 Matter 285/300 Energy 119/125 System Corruption 0% Temperature Cool (15) Movement Treading (225) Ox1 Location -7/Deep Caves Parts ------- > --- POWER (1) -------- Light Ion Engine > --- PROPULSION (2) --- Advanced Treads Advanced Treads > --- UTILITY (4) ------ High-capacity Storage Unit Signal Interpreter > --- WEAPON (2) ------- Improved Medium Laser > --- INVENTORY (20) --- Heavy Ion Engine Light Treads Light Treads Light Treads Advanced Treads Cryofiber Web Cryofiber Web High-capacity Matter Pod (200) 0b10 Decoder Chip [Skirmisher] Light Armor Plating Heavy Assault Rifle Heavy Assault Rifle Autogun Autogun Mini Grenade Launcher Mini Grenade Launcher RU-N14's Throwing Claymores (3) Peak State ------------ > --- POWER ------------ Cooled Ion Engine > --- PROPULSION ------- Improved Treads Advanced Treads > --- UTILITY ---------- Cryofiber Web High-capacity Storage Unit Signal Interpreter Hardened Light Armor Plating > --- WEAPON ----------- Improved Medium Laser Heavy Assault Rifle > --- INVENTORY -------- Heavy Ion Engine Light Treads Light Treads Light Treads Light Treads Advanced Treads Advanced Treads Advanced Treads Cryofiber Web Cryofiber Web High-capacity Matter Pod Improved Medium Laser Heavy Assault Rifle Heavy Assault Rifle Heavy Assault Rifle Heavy Assault Rifle Autogun Autogun Mini Grenade Launcher Mini Grenade Launcher [Rating: 24] Favorites ----------- Power Light Ion Engine Engine Light Ion Engine Power Core Light Nuclear Core Propulsion Light Treads Treads Light Treads Utility High-capacity Storage Unit Device Improved Heat Sink Storage High-capacity Storage Unit Processor Signal Interpreter Protection Hardened Light Armor Plating Weapon Heavy Assault Rifle Energy Gun Improved Medium Laser Ballistic Gun Heavy Assault Rifle Launcher Advanced EMP Blaster Special Weapon RU-N14's Throwing Claymores Build | -11 -10 -9 -9 -7 -7 ------- Run | Yrd Mat Mat Min Zio Dee Slots Evolved 2 | . . 2 . . . Power . | . . . . . . Propulsion . | . . . . . . Utility 2 | . . 2 . . . Weapon . | . . . . . . Parts Attached 65 | 7 8 46 . 2 2 Power 10 | 1 1 8 . . . Engine 8 | 1 1 6 . . . Core 2 | . . 2 . . . Reactor . | . . . . . . Propulsion 17 | 2 1 12 . . 2 Treads 17 | 2 1 12 . . 2 Leg . | . . . . . . Wheel . | . . . . . . Hover . | . . . . . . Flight . | . . . . . . Utility 18 | 2 4 12 . . . Device 8 | 1 1 6 . . . Storage 3 | 1 1 1 . . . Processor 1 | . 1 . . . . Hackware . | . . . . . . Protection 6 | . 1 5 . . . Artifact . | . . . . . . Weapon 20 | 2 2 14 . 2 . Energy Gun 6 | . . 5 . 1 . Energy Cannon . | . . . . . . Ballistic Gun 12 | 2 2 8 . . . Ballistic Cannon . | . . . . . . Launcher 1 | . . 1 . . . Special Weapon 1 | . . . . 1 . Impact Weapon . | . . . . . . Slashing Weapon . | . . . . . . Piercing Weapon . | . . . . . . Special Melee Weapon . | . . . . . . Unidentified Prototypes 7 | . . 6 . 1 . Parts Lost 19 | . 2 12 . . 5 Power 5 | . 1 4 . . . Propulsion 3 | . . 1 . . 2 Utility 7 | . 1 4 . . 2 Weapon 4 | . . 3 . . 1 Highest Loss Streak 5 | . 1 3 . . 5 To Critical Strikes . | . . . . . . Average Slot Usage (%) 97 | . 99 94 100 99 99 Engine 11 | . 13 8 11 11 11 Treads 23 | . 28 21 22 22 22 Device 6 | . 2 5 11 11 11 Storage 11 | . 14 11 11 11 11 Processor 9 | . 7 11 11 11 11 Protection 8 | . 3 11 11 11 10 Energy Gun 5 | . . 4 11 10 11 Ballistic Gun 18 | . 28 17 11 11 11 Naked Turns . | . . . . . . Heaviest Build 63 | 12 54 63 55 60 55 Greatest Support 45 | 40 40 45 42 42 44 Greatest Overweight (x) 2 | . 1 2 1 1 1 Average Overweight (x) . | . . 1 1 1 1 Largest Inventory Capacity 20 | 8 20 20 20 20 20 Average Capacity 19 | 7 18 20 20 20 20 Most Carried 20 | 6 18 20 17 19 19 Average Carried 16 | 4 13 18 17 18 18 Final Capacity 20 | 8 20 20 20 20 20 Final Carried 19 | 6 16 17 17 19 17 Class Distribution -------------------- 50% | Mutant 49% | Scavenger-Mutant Dominant Class ---------------- Mutant | -10/Materials Scavenger-Mutant | -9/Materials Scavenger-Mutant | -9/Mines Scavenger-Mutant | -7/Zion Scavenger-Mutant | -7/Deep Caves Resources | -11 -10 -9 -9 -7 -7 ----------- Run | Yrd Mat Mat Min Zio Dee Matter Collected 2131 | 290 654 1125 46 16 . Remotely . | . . . . . . Salvage Created 2720 | 106 734 1810 61 . 9 Parts 173 | 7 51 106 8 . 1 Haulers Intercepted 7 | . 2 5 . . . Recyclers Shooed 2 | . 2 . . . . Parts Field Recycled . | . . . . . . Retrieved Matter . | . . . . . . Parts Self-Destructed . | . . . . . . Prevented . | . . . . . . Kills | -11 -10 -9 -9 -7 -7 ------- Run | Yrd Mat Mat Min Zio Dee Combat Hostiles Destroyed 48 | . 15 29 4 . . Guns 47 | . 15 28 4 . . Classes Destroyed 11 | 2 6 3 . . . Worker 1 | . 1 . . . . Builder 2 | . . 2 . . . Tunneler 1 | 1 . . . . . Hauler 7 | . 2 5 . . . Recycler 4 | 1 . 3 . . . Operator 2 | . 2 . . . . Watcher 5 | . 2 3 . . . Swarmer 10 | . 2 4 4 . . Grunt 27 | . 13 14 . . . Duelist 1 | . . 1 . . . Sentry 10 | . . 10 . . . Z-Technician 1 | . . . . . 1 Best Kill Streak 7 | 2 4 7 4 . 1 Combat Bots Only 5 | . 4 5 4 . . Max Kills in Single Turn 2 | 1 1 2 1 . 1 Gunslinging 1 | . . 1 . . . Exploded . | . . . . . . Melee . | . . . . . . Uniques/NPCs Destroyed . | . . . . . . Combat | -11 -10 -9 -9 -7 -7 -------- Run | Yrd Mat Mat Min Zio Dee Hostile Shots Fired 341 | . 90 188 26 . 37 Missed 96 | . 24 48 10 . 14 Damage Taken 3453 | . 757 1856 124 . 716 Core 555 | . 153 281 30 . 91 Absorbed by Shields . | . . . . . . Regen/Repaired (Parts) 133 | . . 133 . . . Core Remaining (%) 69 | 100 38 . . . . Volleys Fired 229 | 5 84 126 10 . 4 Largest 2 | 2 2 2 2 . 2 Hottest 79 | 40 46 79 79 . 79 Shots Fired 448 | 10 169 244 20 . 5 Gun 446 | 10 169 242 20 . 5 Cannon . | . . . . . . Launcher 2 | . . 2 . . . Special . | . . . . . . Kinetic 386 | 10 169 193 10 . 4 Thermal 60 | . . 49 10 . 1 Explosive . | . . . . . . Electromagnetic 2 | . . 2 . . . Robot Hit Streak 18 | 2 13 18 3 . 2 Robot Miss Streak 5 | 2 4 4 5 . 1 Penetration Max . | . . . . . . Secondary Targets 6 | . . 5 1 . . Max Gunslinging Chain 1 | . . 1 1 . . Shots Hit Robots 292 | 6 115 159 9 . 3 Core Hits 114 | 3 40 66 4 . 1 Critical Kills . | . . . . . . Critical Parts Destroyed 2 | 1 . 1 . . . Critical Strikes 5 | 1 . 4 . . . Burn 3 | . . 3 . . . Destroy 2 | 1 . 1 . . . Melee Attacks . | . . . . . . Impact . | . . . . . . Slashing . | . . . . . . Piercing . | . . . . . . Sneak Attacks . | . . . . . . Combat Hostiles . | . . . . . . Follow-up Attacks . | . . . . . . Damage Inflicted 4283 | 59 1379 2631 173 . 41 Guns 4191 | 59 1369 2566 156 . 41 Cannons . | . . . . . . Explosions . | . . . . . . Melee . | . . . . . . Ramming 92 | . 10 65 17 . . Kinetic 3533 | 59 1369 1962 102 . 41 Thermal 658 | . . 604 54 . . Explosive . | . . . . . . Electromagnetic . | . . . . . . Impact . | . . . . . . Slashing . | . . . . . . Piercing . | . . . . . . Highest Corruption 1 | . 1 . . . . Average Corruption 1 | . 1 . . . . Corruption Purged . | . . . . . . Corruption Blocked . | . . . . . . Effects 6 | . 6 . . . . Message Errors 1 | . 1 . . . . Matter Fused 1 | . 1 . . . . Heat Flow Errors 1 | . 1 . . . . Data Loss (minor) 2 | . 2 . . . . Misfires 1 | . 1 . . . . Overload Shots . | . . . . . . Overflow Damage . | . . . . . . Projectiles . | . . . . . . Explosions . | . . . . . . Melee . | . . . . . . Knockbacks . | . . . . . . Impact . | . . . . . . Kinetic . | . . . . . . Secondary . | . . . . . . Self-Inflicted Damage . | . . . . . . Shots . | . . . . . . Rammed 13 | . 3 9 1 . . Targets Rammed 14 | . 3 10 1 . . Kicked . | . . . . . . Crushed 1 | . . 1 . . . Highest Temperature 165 | . 165 127 . . 24 Average Temperature 18 | . 14 22 . . 10 Received Heat Transfer 1452 | . 384 861 . . 207 Siege Activations . | . . . . . . Robots Corrupted . | . . . . . . Combat Hostiles . | . . . . . . Parts Fried 1 | . 1 . . . . Impact Corruptions 1 | . 1 . . . . Robots Melted 1 | . . 1 . . . Combat Hostiles 1 | . . 1 . . . Parts Melted 6 | . . 5 1 . . Heat Transferred 1628 | . . 1517 111 . . Parts Sabotaged . | . . . . . . Parts Stolen . | . . . . . . Parts Stripped . | . . . . . . Power Chain Reactions . | . . . . . . Alert | -11 -10 -9 -9 -7 -7 ------- Run | Yrd Mat Mat Min Zio Dee Peak Influence 484 | 10 242 484 279 . . Initial 174 | . 6 38 174 . . Average 155 | 4 80 219 236 . . Maximum Alert Level 2 | . 1 2 1 . . Low Security (%) 66 | 100 90 47 38 . . Level 1 24 | . 9 35 61 . . Level 2 8 | . . 16 . . . Level 3 . | . . . . . . Level 4 . | . . . . . . Level 5 . | . . . . . . High Security . | . . . . . . Max Security . | . . . . . . Squads Dispatched 7 | . 5 2 . . . Investigation 3 | . 2 1 . . . Extermination . | . . . . . . Reinforcement 4 | . 3 1 . . . Assault . | . . . . . . Garrison . | . . . . . . Intercept . | . . . . . . Searches Triggered . | . . . . . . Construction Impeded 1 | . . 1 . . . Haulers Reinforced . | . . . . . . Active Scanning Responses . | . . . . . . Cargo Convoy Interrupts . | . . . . . . Stealth | -11 -10 -9 -9 -7 -7 --------- Run | Yrd Mat Mat Min Zio Dee Distress Signals 5 | . 2 3 . . . Communications Jammed . | . . . . . . Distress Signals . | . . . . . . Times Spotted 87 | . 35 44 5 . 3 Peak Tracking Total 5 | . 4 5 4 . 3 Tactical Retreats 6 | . 2 3 1 . . Traps | -11 -10 -9 -9 -7 -7 ------- Run | Yrd Mat Mat Min Zio Dee Traps Triggered 5 | . 3 2 . . . Indirectly . | . . . . . . Trap Hack Attempts . | . . . . . . Triggered . | . . . . . . Disarmed . | . . . . . . Reprogrammed 4 | . . 4 . . . Reused 1 | . . 1 . . . Traps Extracted . | . . . . . . Installed . | . . . . . . Triggered 1 | . . 1 . . . Machines | -11 -10 -9 -9 -7 -7 ---------- Run | Yrd Mat Mat Min Zio Dee Machines Disabled 4 | . 1 2 . . 1 Max in Single Turn 1 | . 1 1 . . . Machines Repaired . | . . . . . . Machines Dismantled . | . . . . . . Machines Sabotaged . | . . . . . . Overloaded Fab Kills . | . . . . . . Hacking | -11 -10 -9 -9 -7 -7 --------- Run | Yrd Mat Mat Min Zio Dee Machines Accessed 11 | . 6 5 . . . Terminals 10 | . 6 4 . . . Fabricators . | . . . . . . Repair Stations 1 | . . 1 . . . Recycling Units . | . . . . . . Scanalyzers . | . . . . . . Garrison Access . | . . . . . . Total Hacks 25 | . 10 15 . . . Successful 13 | . 4 9 . . . Failed 12 | . 6 6 . . . Catastrophic 3 | . 3 . . . . Database Lockouts . | . . . . . . Manual 28 | . 10 14 . 4 . Terminals 23 | . 10 13 . . . Fabricators . | . . . . . . Repair Stations 2 | . . 2 . . . Recycling Units . | . . . . . . Scanalyzers . | . . . . . . Garrison Access . | . . . . . . Terminal Hacks 7 | . 3 4 . . . Robot Analysis 2 | . 2 . . . . Branch Access Points 1 | . . 1 . . . Terminal Index 2 | . 1 1 . . . Locate Traps 1 | . . 1 . . . Reprogram Traps 1 | . . 1 . . . Fabricator Hacks . | . . . . . . Repair Station Hacks 2 | . . 2 . . . Scan Component 1 | . . 1 . . . Repair 1 | . . 1 . . . Recycling Unit Hacks . | . . . . . . Scanalyzer . | . . . . . . Garrison Access Hacks . | . . . . . . Unauthorized Hacks 4 | . 1 3 . . . Terminals 4 | . 1 3 . . . Track 1 | . 1 . . . . Botnet 3 | . . 3 . . . Fabricators . | . . . . . . Repair Stations . | . . . . . . Recycling Units . | . . . . . . Scanalyzers . | . . . . . . Garrison Access . | . . . . . . Data Cores Recovered . | . . . . . . Used . | . . . . . . Hacking Detections 8 | . 5 3 . . . Full Trace Events . | . . . . . . Feedback Events . | . . . . . . Feedback Blocked . | . . . . . . Robot Schematics Acquired . | . . . . . . Robots Built . | . . . . . . Authchips . | . . . . . . Time . | . . . . . . Total Robot Build Rating . | . . . . . . Part Schematics Acquired . | . . . . . . Parts Built . | . . . . . . Authchips . | . . . . . . Time . | . . . . . . Total Part Build Rating . | . . . . . . Parts Repaired 1 | . . 1 . . . Time 32 | . . 32 . . . Parts Recycled . | . . . . . . Recycled Matter . | . . . . . . Retrieved Matter . | . . . . . . Retrieved Components . | . . . . . . Parts Scanalyzed . | . . . . . . Part Schematics Acquired . | . . . . . . Parts Damaged . | . . . . . . Bothacking | -11 -10 -9 -9 -7 -7 ------------ Run | Yrd Mat Mat Min Zio Dee Used RIF Installer . | . . . . . . Robots Hacked . | . . . . . . Non-combat . | . . . . . . Combat . | . . . . . . Robot Hacks Applied . | . . . . . . Relay Couplers Released . | . . . . . . Fabnet Peak Effective % . | . . . . . . Robots Rewired . | . . . . . . Allies Hacked . | . . . . . . Hacks Repelled . | . . . . . . Allies | -11 -10 -9 -9 -7 -7 -------- Run | Yrd Mat Mat Min Zio Dee Total Allies 8 | . . . . 8 . Largest Group 8 | . . . . 8 5 Highest-Rated Group 249 | . . . . 249 136 Highest-Rated Ally 39 | . . . . 39 39 Total Orders . | . . . . . . Ally Attacks 27 | . . . . . 27 Total Damage 297 | . . . . . 297 Kills 3 | . . . . . 3 Allies Corrupted . | . . . . . . Allies Melted . | . . . . . . Intel | -11 -10 -9 -9 -7 -7 ------- Run | Yrd Mat Mat Min Zio Dee Robot Analysis Total 2 | . 2 . . . . Derelict Logs Recovered 3 | . . . 1 2 . Drone Launches . | . . . . . . Drone Recoveries . | . . . . . . Exploration | -11 -10 -9 -9 -7 -7 ------------- Run | Yrd Mat Mat Min Zio Dee Turns Passed 8438 | 125 2621 3057 287 1961 387 Spaces Moved 2988 | 47 810 1024 110 836 161 Core 1 | 1 . . . . . Treads 2987 | 46 810 1024 110 836 161 Legs . | . . . . . . Wheels . | . . . . . . Hover . | . . . . . . Flight . | . . . . . . Fastest Speed 50 | 50 160 232 232 232 225 Average Speed 232 | 157 228 238 232 232 231 Slowest Speed 305 | 160 240 305 232 232 232 Overloaded Moves . | . . . . . . Propulsion Burnouts . | . . . . . . Robots Hopped . | . . . . . . Cave-ins Triggered . | . . . . . . Exploration Rate (%) 52 | 3 93 78 30 84 25 Regions Visited 5 Branch Regions 3 Pre-discovered Areas 1 | . . . . 1 . Known Exits Taken 4 | . 1 1 1 1 . Unknown Exits Taken 1 | 1 . . . . . Scrap Searched 2 | . . . . 2 . Spaces Dug . | . . . . . . Terrain Destroyed . | . . . . . . Melee . | . . . . . . Projectile . | . . . . . . AOE . | . . . . . . Terrain Rammed . | . . . . . . Walls Destroyed . | . . . . . . Machines Disabled . | . . . . . . Actions | -11 -10 -9 -9 -7 -7 --------- Run | Yrd Mat Mat Min Zio Dee Total 4080 | 85 1431 1415 121 858 170 Wait 695 | 21 501 150 1 19 3 Move 2983 | 46 809 1023 109 835 161 Hop . | . . . . . . Pick Up 42 | 6 15 20 . 1 . Fast Attach 30 | 7 2 20 . 1 . Attach 15 | . 2 11 . . 2 Detach 6 | . 2 3 . 1 . Swap 22 | . 4 17 . 1 . Drop 44 | . 9 35 . . . Fire 229 | 5 84 126 10 . 4 Melee . | . . . . . . Ram . | . . . . . . Kick . | . . . . . . Crush 14 | . 3 10 1 . . Escape Stasis . | . . . . . . Rewire . | . . . . . . Trap . | . . . . . . Miscellaneous . | . . . . . . Route ------- -11/Scrapyard -10/Materials (discovered 4 exits: *Mat x3 / *Min) -9/Materials (discovered 4 exits: *Mat x2 / *Min x2) -9/Mines -7/Zion -7/Deep Caves History --------- Turn | Location | Event 37 | -11/Scrapyard | Discovered new exit (range 15) 126 | -11/Scrapyard | Entered Materials 316 | -10/Materials | Build established: Mutant 477 | -10/Materials | Discovered new exit (range 13) 994 | -10/Materials | Discovered new exit (range 9) 1024 | -10/Materials | Core integrity fell below 50% 1327 | -10/Materials | Discovered new exit (range 7) 1398 | -10/Materials | Identified exit to Materials 1544 | -10/Materials | Identified exit to Mines 2127 | -10/Materials | Discovered exit to Materials (range 16) 2747 | -10/Materials | Entered another Materials area 2747 | -9/Materials | Evolved 2 slots: Utility x2 3186 | -9/Materials | Identified exit to Mines 3537 | -9/Materials | Build established: Scavenger-Mutant 4030 | -9/Materials | Discovered new exit (range 15) 4064 | -9/Materials | Identified exit to Materials 4738 | -9/Materials | Build established: Mutant 4782 | -9/Materials | Repaired Imp. Treads 5297 | -9/Materials | Core integrity fell below 50% 5492 | -9/Materials | Lost 3 parts (1p1n1w) 5514 | -9/Materials | Discovered exit to Materials (range 9) 5749 | -9/Materials | Build established: Scavenger-Mutant 5804 | -9/Materials | Entered Mines 6065 | -9/Mines | A Derelict revealed a hidden shortcut to a safe place 6081 | -9/Mines | Identified exit to Zion 6091 | -9/Mines | Entered Zion 6185 | -7/Zion | Learned location of 1 exit from Factory 6227 | -7/Zion | Gained Derelict followers 6411 | -7/Zion | Found Prototype Special Weapon 6411 | -7/Zion | Identified RU-N14's Throwing Claymores 6558 | -7/Zion | Given A8's code to call for help 6983 | -7/Zion | Imprinted 6986 | -7/Zion | Declared Zion's savior 7155 | -7/Zion | Acquired unknown access codes intercepted by a Zionite 7241 | -7/Zion | Learned Factory terminal intel 8001 | -7/Zion | Opened final containment barrier to the Deep Caves 8043 | -7/Zion | Discovered new exit (range 3) 8043 | -7/Zion | Saw the warning signs outside the Deep Caves entrance 8045 | -7/Zion | Identified exit to Deep Caves 8052 | -7/Zion | Entered Deep Caves 8052 | -7/Deep Caves | Accompanied by 8 allies 8377 | -7/Deep Caves | Z-Facility disabled 8396 | -7/Deep Caves | Attacked by Z-Imprinter 8424 | -7/Deep Caves | Core integrity fell below 20% 8439 | -7/Deep Caves | Destroyed by BQ-YG2(z) with Zionite Laser-S Last Messages --------------- 08377_ NEW_ZION: Z-Facility proximity alert. 08377_ HV Slug penetrates Z-Facility. 08377_ Z-Facility disabled. 08378_ SO-M30(o) destroyed. 08379_ HV Slug penetrates Z-Facility. 08383_ Destroyed Datajack. 08384_ E2-M0H(o) suffers critical hit (Destroy). 08386_ E2-M0H(o) destroyed. 08387_ HV Slug penetrates Z-Facility. 08392_ JK-FJP(h) destroyed. 08392_ 9J-GMI(l) sneak attacks. Z-Imprinter: GET AWAY FROM HERE! I've worked too hard for our future just to have you ruin everything! 08407_ FY-S3K(s) destroyed. 08414_ LW-2G0(b) destroyed. 08428_ Hrd. Light Armor Plating destroyed. 08431_ Imp. Heat Sink destroyed. 08431_ Adv. Treads destroyed. 08431_ Hvy. Assault Rifle destroyed. 08436_ Lgt. Treads destroyed. Map ----- +----------------------------------------------------+ | | | | | | | | | | | | | | | | | | | | | | | | | | | | | | | ?????????????????????????????????????????????????? | | ??????????????????###############????????????????? | | ???????????????#### ##???????????????? | | ??????????????## #????###????????? | | ?????????????## ###### ##?????### | | ????????????## ## # #???### | | ??????????? ##### | | ??????????? | | ?????????? | | ?????????? | | ?????????? @ | | ???????????????""""" """" | | ????????????????"""""""""""" z | | ??????????????????"""""""""" | | ????????????????????"""""" * !%! | | ????????????????????""""" %= %!% | | ????????????????????""""""" = =/ | | ?????????????????????""""""" | | ?????????????????????""""""" | | ?????????????????????"""""" " | | ??????????????????????"" * " | | ????????????????????????"%%% | | ???????????????????????" = * | | ??????????????????????" *%/ | | ??????????????????????""" | | ???????????????????????"""" ! | | ???????????????????????"""" "% | | ?????????????????????????? = | | ??????????????????????????"" | | ????????????????????????????" | | ?????????????????????????????" ? ????? | | ?????????????????????????????????????????????????? | | ?????????????????????????????????????????????????? | | ?????????????????????????????????????????????????? | | ?????????????????????????????????????????????????? | +----------------------------------------------------+ Best States ------------- Heat Dissipation 42 Energy Generation 14 Energy Capacity 280 Matter Stores 300 Matter Capacity 300 Sight Range 16 Terrain Scan Density 10 Base Temperature (-) 100 Armor Coverage 375 Evasion (%) 40 Recoil Reduction 2 Item Schematics ----------------- None Robot Schematics ------------------ None Fabricated ------------ Nothing Alien Tech Used ----------------- None Achievements -------------- None Challenges ------------ None Game ------ Seed DerelictLinearDisintegrator Manual? 0 Play Time 00:40:38 Cumulative 65.6 hours Start 2024.07.05 @ 14:21:10 End 2024.07.05 @ 18:01:12 Sessions 3 Manual Loads 0 Difficulty Rogue Special Mode None Game No. 60 Rogue 60 Adventurer 0 Explorer 0 Win Type - Total 0 Types 0/0/0/0/0/0/0/0/0 Lore% 22 Gallery% 44 Achievement% 35 Wizard Run 0 Options --------- Layout 0 ASCII 0 Keyboard 1 Movement Numpad Keybinds 0 Fullscreen 2 Font 18/SmallcapsGlow Map View 76x50 Zoom Use 0% Tactical HUD 1 Map Filters NONE Filters NONE Steam 1 RUN: 93dfede1-dadb-4422-801d-52c6c7849bd7